Cogmind - Beta 10.2 @@@ ROGUE MODE // 2021.01.06 @ 00:06:47 Player: Rushional Result: Destroyed by S-10 Pest with Light Assault Rifle Performance ------------- Evolutions (0) 0 Regions Visited (2) 400 Robots Destroyed (21) 105 Value Destroyed (384) 384 Prototype IDs (0) 0 Alien Tech Used (0) 0 Bonus (0) 0 TOTAL SCORE: 889 Bonus ------- None Cogmind --------- Core Integrity 0/250 Matter 300/300 Energy 233/250 System Corruption 0% Temperature Cool (88) Movement Walking (120) Location -10/Mines Parts ------- > --- POWER (1) -------- Ion Engine > --- PROPULSION (2) --- Aluminum Leg Aluminum Leg > --- UTILITY (2) ------ Medium Storage Unit ECM Suite > --- WEAPON (2) ------- Beam Cannon > --- INVENTORY (8) ---- Ion Engine Light Ion Engine Aluminum Leg Aluminum Leg Aluminum Leg Improved Heat Sink Experimental Sensor Array Terrain Scan Processor Peak State ------------ > --- POWER ------------ Ion Engine > --- PROPULSION ------- Wheel Wheel > --- UTILITY ---------- Small Storage Unit Improved Terrain Scanner > --- WEAPON ----------- EM Pulse Gun Small Laser > --- INVENTORY -------- Light Ion Engine Light Ion Engine Compact Wheel Small Laser [Rating: 8] Favorites ----------- Power Ion Engine Engine Ion Engine Propulsion Aluminum Leg Leg Aluminum Leg Wheel Wheel Utility Medium Storage Unit Device ECM Suite Storage Medium Storage Unit Weapon Small Laser Energy Gun Small Laser Energy Cannon Beam Cannon Build | -11 -10 -10 ------- Run | Scr Mat Min Slots Evolved . | . . . Power . | . . . Propulsion . | . . . Utility . | . . . Weapon . | . . . Parts Attached 25 | 9 16 . Power 2 | 1 1 . Engine 2 | 1 1 . Core . | . . . Reactor . | . . . Propulsion 12 | 4 8 . Treads . | . . . Leg 5 | . 5 . Wheel 7 | 4 3 . Hover . | . . . Flight . | . . . Utility 5 | 2 3 . Device 3 | 1 2 . Storage 2 | 1 1 . Processor . | . . . Hackware . | . . . Protection . | . . . Artifact . | . . . Weapon 6 | 2 4 . Energy Gun 5 | 2 3 . Energy Cannon 1 | . 1 . Ballistic Gun . | . . . Ballistic Cannon . | . . . Launcher . | . . . Special Weapon . | . . . Impact Weapon . | . . . Slashing Weapon . | . . . Piercing Weapon . | . . . Special Melee Weapon . | . . . Unidentified Prototypes . | . . . Parts Lost 9 | . 8 1 Power 1 | . 1 . Propulsion 3 | . 3 . Utility 1 | . 1 . Weapon 4 | . 3 1 Highest Loss Streak 7 | . 7 1 Average Slot Usage (%) 87 | . 84 100 Engine 11 | . 11 14 Leg 17 | . 15 28 Wheel 9 | . 11 . Device 8 | . 7 14 Storage 14 | . 14 14 Energy Gun 15 | . 15 14 Energy Cannon 9 | . 8 14 Naked Turns . | . . . Heaviest Build 18 | 13 18 18 Greatest Support 26 | 26 20 20 Greatest Overweight (x) 2 | 1 2 . Average Overweight (x) . | . . . Largest Inventory Capacity 8 | 6 8 8 Average Capacity 7 | 5 7 8 Most Carried 8 | 6 8 8 Average Carried 6 | 4 6 7 Final Capacity 8 | 6 8 8 Final Carried 8 | 6 8 8 Class Distribution -------------------- 51% | Scavenger-Mutant 48% | Mutant Dominant Class ---------------- Mutant | -10/Materials Scavenger-Mutant | -10/Mines Resources | -11 -10 -10 ----------- Run | Scr Mat Min Matter Collected 417 | 290 117 10 Remotely . | . . . Salvage Created 676 | 247 380 49 Parts 43 | 16 22 5 Haulers Intercepted . | . . . Recyclers Shooed 2 | 1 1 . Parts Field Recycled . | . . . Retrieved Matter . | . . . Parts Self-Destructed . | . . . Prevented . | . . . Kills | -11 -10 -10 ------- Run | Scr Mat Min Combat Hostiles Destroyed 10 | . 7 3 Melee 1 | . 1 . Guns 4 | . 2 2 Cannons 3 | . 2 1 AOE 1 | . 1 . Classes Destroyed 7 | 3 2 2 Worker 2 | 2 . . Builder 1 | . . 1 Tunneler 5 | 5 . . Recycler 2 | 1 1 . Operator 1 | . 1 . Swarmer 3 | . . 3 Grunt 7 | . 7 . Best Kill Streak 4 | 3 2 4 Combat Bots Only 3 | . 2 3 Max Kills in Single Turn 1 | 1 1 1 Gunslinging . | . . . Exploded 1 | . 1 . Melee 1 | . 1 . Uniques/NPCs Destroyed . | . . . Combat | -11 -10 -10 -------- Run | Scr Mat Min Damage Taken 975 | 27 731 217 Core 254 | . 209 45 Absorbed by Shields . | . . . Core Remaining (%) 100 | 100 . . Volleys Fired 67 | 17 39 11 Largest 2 | 2 2 2 Hottest 100 | 80 100 100 Shots Fired 118 | 34 63 21 Gun 84 | 34 40 10 Cannon 34 | . 23 11 Launcher . | . . . Special . | . . . Kinetic . | . . . Thermal 85 | 17 47 21 Explosive . | . . . Electromagnetic 33 | 17 16 . Robot Hit Streak 12 | 12 7 4 Robot Miss Streak 6 | 2 6 3 Penetration Max . | . . . Secondary Targets . | . . . Shots Hit Robots 60 | 25 26 9 Core Hits 36 | 9 23 4 Critical Hits 1 | . . 1 Critical Kills . | . . . Critical Parts Destroyed 1 | . . 1 Melee Attacks . | . . . Impact . | . . . Slashing . | . . . Piercing . | . . . Sneak Attacks . | . . . Combat Hostiles . | . . . Follow-up Attacks . | . . . Damage Inflicted 1170 | 391 654 125 Guns 628 | 298 275 55 Cannons 227 | . 157 70 Explosions 260 | 93 167 . Melee . | . . . Ramming 55 | . 55 . Kinetic . | . . . Thermal 659 | 233 301 125 Explosive 167 | . 167 . Electromagnetic 289 | 158 131 . Impact . | . . . Slashing . | . . . Piercing . | . . . Highest Corruption . | . . . Average Corruption . | . . . Corruption Purged . | . . . Overload Shots . | . . . Overflow Damage 15 | 15 . . Projectiles . | . . . Explosions 15 | 15 . . Melee . | . . . Knockbacks . | . . . Impact . | . . . Kinetic . | . . . Secondary . | . . . Self-Inflicted Damage 121 | 27 94 . Shots 2 | 1 1 . Rammed 31 | . 31 . Targets Rammed 31 | . 31 . Kicked . | . . . Crushed . | . . . Highest Temperature 265 | 54 265 237 Average Temperature 60 | 18 67 90 Received Heat Transfer 354 | . 345 9 Siege Activations . | . . . Robots Corrupted . | . . . Combat Hostiles . | . . . Parts Fried . | . . . Impact Corruptions . | . . . Robots Melted . | . . . Combat Hostiles . | . . . Parts Melted 3 | . 2 1 Heat Transferred 1406 | 475 658 273 Parts Sabotaged . | . . . Parts Stolen . | . . . Parts Stripped . | . . . Power Chain Reactions 3 | 3 . . Missiles Intercepted . | . . . Alert | -11 -10 -10 ------- Run | Scr Mat Min Peak Influence 140 | 40 109 140 Initial 26 | . 26 . Average 51 | 18 56 57 Maximum Alert Level . | . . . Low Security (%) 100 | 100 100 100 Level 1 . | . . . Level 2 . | . . . Level 3 . | . . . Level 4 . | . . . Level 5 . | . . . High Security . | . . . Max Security . | . . . Squads Dispatched 2 | . 2 . Investigation . | . . . Extermination . | . . . Reinforcement 2 | . 2 . Assault . | . . . Garrison . | . . . Intercept . | . . . Construction Impeded . | . . . Haulers Reinforced . | . . . Stealth | -11 -10 -10 --------- Run | Scr Mat Min Distress Signals 1 | . 1 . Communications Jammed . | . . . Distress Signals . | . . . Times Spotted 30 | . 21 9 Peak Tracking Total 3 | . 3 3 Tactical Retreats 3 | . 1 2 Traps | -11 -10 -10 ------- Run | Scr Mat Min Traps Triggered 1 | . 1 . Indirectly . | . . . Trap Hack Attempts . | . . . Triggered . | . . . Disarmed . | . . . Reprogrammed . | . . . Reused . | . . . Traps Extracted . | . . . Installed . | . . . Triggered . | . . . Machines | -11 -10 -10 ---------- Run | Scr Mat Min Machines Disabled 2 | . 1 1 Max in Single Turn 1 | . 1 1 Machines Sabotaged . | . . . Garrisons Compromised . | . . . Overloaded Fab Kills . | . . . Fab Network Shutdowns . | . . . Hacking | -11 -10 -10 --------- Run | Scr Mat Min Machines Accessed 3 | . 3 . Terminals 2 | . 2 . Fabricators . | . . . Repair Stations . | . . . Recycling Units 1 | . 1 . Scanalyzers . | . . . Garrison Access . | . . . Total Hacks 7 | . 7 . Successful 3 | . 3 . Failed 4 | . 4 . Catastrophic 2 | . 2 . Database Lockouts . | . . . Manual 8 | . 8 . Terminals 5 | . 5 . Fabricators . | . . . Repair Stations . | . . . Recycling Units 2 | . 2 . Scanalyzers . | . . . Garrison Access . | . . . Terminal Hacks 2 | . 2 . Record 1 | . 1 . Branch Access Points 1 | . 1 . Fabricator Hacks . | . . . Repair Station Hacks . | . . . Recycling Unit Hacks 1 | . 1 . Retrieve Components 1 | . 1 . Scanalyzer . | . . . Garrison Access Hacks . | . . . Unauthorized Hacks . | . . . Terminals . | . . . Fabricators . | . . . Repair Stations . | . . . Recycling Units . | . . . Scanalyzers . | . . . Garrison Access . | . . . Data Cores Recovered 1 | . 1 . Used 1 | . 1 . Hacking Detections 4 | . 4 . Full Trace Events . | . . . Feedback Events . | . . . Feedback Blocked . | . . . Robot Schematics Acquired . | . . . Robots Built . | . . . Matter . | . . . Time . | . . . Total Robot Build Rating . | . . . Part Schematics Acquired . | . . . Parts Built . | . . . Matter . | . . . Time . | . . . Total Part Build Rating . | . . . Parts Repaired . | . . . Time . | . . . Parts Recycled . | . . . Recycled Matter . | . . . Retrieved Matter . | . . . Retrieved Components . | . . . Parts Scanalyzed . | . . . Part Schematics Acquired . | . . . Parts Damaged . | . . . Bothacking | -11 -10 -10 ------------ Run | Scr Mat Min Used RIF Installer . | . . . Robots Hacked . | . . . Non-combat . | . . . Combat . | . . . Robot Hacks Applied . | . . . Relay Couplers Released . | . . . Robots Rewired . | . . . Allies Hacked . | . . . Hacks Repelled . | . . . Allies | -11 -10 -10 -------- Run | Scr Mat Min Total Allies . | . . . Largest Group . | . . . Highest-Rated Group . | . . . Highest-Rated Ally . | . . . Total Orders . | . . . Ally Attacks . | . . . Total Damage . | . . . Kills . | . . . Allies Corrupted . | . . . Allies Melted . | . . . Intel | -11 -10 -10 ------- Run | Scr Mat Min Robot Analysis Total . | . . . Derelict Logs Recovered . | . . . Drone Launches . | . . . Drone Recoveries . | . . . Exploration | -11 -10 -10 ------------- Run | Scr Mat Min Turns Passed 1206 | 176 803 227 Spaces Moved 828 | 121 560 147 Core 5 | 3 2 . Treads . | . . . Legs 460 | . 313 147 Wheels 363 | 118 245 . Hover . | . . . Flight . | . . . Fastest Speed 50 | 50 80 120 Average Speed 103 | 80 104 120 Slowest Speed 150 | 100 150 120 Overloaded Moves . | . . . Propulsion Burnouts . | . . . Robots Hopped . | . . . Cave-ins Triggered . | . . . Exploration Rate (%) 37 | 4 77 31 Regions Visited 2 Branch Regions 1 Pre-discovered Areas . | . . . Known Exits Taken 1 | . 1 . Unknown Exits Taken 1 | 1 . . Scrap Searched 1 | . . 1 Spaces Dug . | . . . Terrain Destroyed 43 | 6 37 . Melee . | . . . Projectile . | . . . AOE 43 | 6 37 . Terrain Rammed . | . . . Walls Destroyed . | . . . Machines Disabled . | . . . Actions | -11 -10 -10 --------- Run | Scr Mat Min Total 1047 | 162 707 178 Wait 75 | 6 53 16 Move 826 | 120 559 147 Hop . | . . . Pick Up 13 | 7 4 2 Fast Attach 17 | 8 9 . Attach 5 | . 5 . Detach 3 | . 3 . Swap 3 | 1 2 . Drop 7 | 3 2 2 Fire 67 | 17 39 11 Melee . | . . . Ram 31 | . 31 . Kick . | . . . Crush . | . . . Escape Stasis . | . . . Rewire . | . . . Trap . | . . . Miscellaneous . | . . . Route ------- -11/Scrapyard -10/Materials (discovered 4 exits: [*Mat x3] / *Min) -10/Mines History --------- Turn | Location | Event 12 | -11/Scrapyard | Discovered new exit (range 14) 177 | -11/Scrapyard | Entered Materials 270 | -10/Materials | Discovered new exit (range 10) 328 | -10/Materials | Build established: Mutant 464 | -10/Materials | Core integrity fell below 50% 479 | -10/Materials | Core integrity fell below 20% 511 | -10/Materials | Lost 7 parts (1p3n1u2w) 641 | -10/Materials | Discovered new exit (range 10) 762 | -10/Materials | Discovered new exit (range 14) 792 | -10/Materials | Identified exit to Mines 888 | -10/Materials | Build established: Scavenger-Mutant 980 | -10/Materials | Entered Mines 1003 | -10/Mines | Found a damaged Exp. Sensor Array with a note attached 1006 | -10/Mines | Found Prototype Device 1207 | -10/Mines | Destroyed by S-10 Pest with Light Assault Rifle Last Messages --------------- 01006_ Acquired Prototype Device. 01017_ Searching scrap... 01017_ Found 20 Matter. 01017_ Found Lgt. Assault Rifle. 01017_ Found 37 Matter. 01018_ Acquired 10 matter. 01052_ U-05 Engineer destroyed. 01052_ Core Extractor disabled. 01056_ Dropped Wheel. 01057_ Acquired Terrain Scan Processor. 01062_ K-01 Serf collects debris. 01069_ S-10 Pest destroyed. 01075_ R-06 Scavenger collects Wheel. 01078_ S-10 Pest suffers critical hit. 01078_ Destroyed Lgt. Ion Engine. 01078_ R-06 Scavenger collects Flight Unit. 01084_ Flight Unit melted. 01084_ S-10 Pest destroyed. 01106_ K-01 Serf collects debris. 01204_ Sml. Laser destroyed. Map ----- +----------------------------------------------------+ | ????????????????????????????????? ###??????# ## #? | | ??????????????????????????# ?????? ??????# ## #? | | ???????????????????????????# ????# ###???# ## #? | | ????????????????????????????# ### ##### ## ## | | ????????????????????????????# ## | | ????????????????????????????????#### * ########## | | ???????????????????????????????????# #????????# | | ???????????????????????????????##### #???????## | | ???????????????????????????????# #????#### | | ???????????????????????????????# #???## | | ???????????????????????????????# ## #???# | | ???????????????????????????????# ?# #???# | | ???????????????????????##??????# ??## ##???## # | | ???????????????????????# ?????? ????#% #?????## # | | ???????????????????????# ????? ????# %#####??# # | | ???????????????????????# ????##?##### [ #??# # | | ???????????????????????# ??????## #######%#??# | | ??????????????????????## ###??## #????#%#### | | ?????????????????????## #### #?####=## | | ????????????????????## ## #?## %% | | ????????????????????# #?# [ | | ????????????????????# ### ### | | ????????????????????# ##?# ## # | | ????????????????????# ##s ##??# ## | | ????????????????????????# ##???# "" #? | | ????????????????????????#@ #????##### "" #? | | ????????????????????????# #????????#### "" ##? | | ????????????????????????# #???????????## ##?? | | ????????????????????????#ss#????????????# ##??? | | ??????????????????????? #????????????# ##??? | | ????????????????????? #????????????# #### | | ??????????????????? #????????????# # | | ????????????????? ## #????????????# | | ??????????????? ??## ##????????????## | | ????????????? ?????######??????????????### | | ???????????? ?????????????????????????????# #### | | ???????????????????????????????????????????# #??? | | ???????????????????????????????????????????# #??? | | ??????????????????????????????????????????? ??? | | ??????????????????????????????????????????# ?? | | ??????????????????????????????????????????# """ ?? | | ??????????????????????????????????????????# """ ? | | ??????????????????????????????????????????# """ | | ??????????????????????????????????????????# """ | | ??????????????????????????????????????????# ??? | | ??????????????????????????????????????????# ??? "" | | ??????????????????????????????????????????# ?????" | | ??????????????????????????????????????????? ?????? | | ?????????????????????????????????????????????????? | | ?????????????????????????????????????????????????? | +----------------------------------------------------+ Best States ------------- Heat Dissipation 25 Energy Generation 10 Energy Capacity 250 Matter Stores 300 Matter Capacity 300 Sight Range 16 Terrain Scan Range 16 Terrain Scan Density 10 ECM Strength 1 Evasion (%) 44 Item Schematics ----------------- None Robot Schematics ------------------ None Fabricated ------------ Nothing Alien Tech Used ----------------- None Achievements -------------- Fist Fight Challenges ------------ None Game ------ Seed NuclearInsulationBeam Manual? 0 Play Time 00:35:07 Cumulative 18.0 hours Start 2021.01.05 @ 20:54:33 End 2021.01.06 @ 00:06:47 Sessions 2 Manual Loads 0 Difficulty Rogue Special Mode None Game No. 6 Rogue 6 Adventurer 0 Explorer 0 Win Type - Total 0 Types 0/0/0/0/0/0/0/0/0 Lore% 19 Gallery% 13 Achievement% 16 Wizard Run 0 Options --------- ASCII 1 Keyboard 1 Movement Numpad Keybinds 0 Fullscreen 1 Font 18/TerminusBold Map View 76x50 Tactical HUD 1 Map Filters NONE Filters NONE Steam 1 RUN: 1804a2c7-e587-40b1-8908-de4e1a5e2826